[Event "Titled Tuesday Blitz August 22 Early 2023"]
[White "campochess"]
[Black "Melikhov, Evgeny V."]
[BlackFideId "4122046"]
[WhiteElo "2190"]
[BlackElo "2398"]
[Result "0-1"]
[Round "10"]
[TimeControl "180+1"]
[Date "2023.08.22"]
[WhiteClock "0:00:30"]
[BlackClock "0:00:31"]
[Board "133"]

1. d4 {[%clk 0:02:59]}  Nf6 {[%clk 0:02:58]} 2. Bg5 {[%clk 0:02:59]}  e6 {[%clk 0:02:58]} 3. e4 {[%clk 0:02:58]}  h6 {[%clk 0:02:58]} 4. Bxf6 {[%clk 0:02:57]}  Qxf6 {[%clk 0:02:58]} 5. Nf3 {[%clk 0:02:57]}  d5 {[%clk 0:02:56]} 6. Nbd2 {[%clk 0:02:53]}  c5 {[%clk 0:02:51]} 7. c3 {[%clk 0:02:52]}  Nc6 {[%clk 0:02:51]} 8. Bb5 {[%clk 0:02:50]}  cxd4 {[%clk 0:02:49]} 9. Nxd4 {[%clk 0:02:46]}  Bd7 {[%clk 0:02:47]} 10. Bxc6 {[%clk 0:02:45]}  bxc6 {[%clk 0:02:42]} 11. O-O {[%clk 0:02:43]}  c5 {[%clk 0:02:40]} 12. Nc2 {[%clk 0:02:40]}  Bd6 {[%clk 0:02:35]} 13. Ne3 {[%clk 0:02:34]}  O-O {[%clk 0:02:24]} 14. exd5 {[%clk 0:02:18]}  exd5 {[%clk 0:02:24]} 15. Nxd5 {[%clk 0:02:17]}  Bxh2+ {[%clk 0:02:24]} 16. Kxh2 {[%clk 0:02:16]}  Qe5+ {[%clk 0:02:20]} 17. Kg1 {[%clk 0:02:15]}  Qxd5 {[%clk 0:02:20]} 18. Nf3 {[%clk 0:02:15]}  Bc6 {[%clk 0:02:17]} 19. Qxd5 {[%clk 0:02:14]}  Bxd5 {[%clk 0:02:17]} 20. Ne5 {[%clk 0:02:13]}  Rad8 {[%clk 0:02:12]} 21. Rfd1 {[%clk 0:02:12]}  Rfe8 {[%clk 0:02:11]} 22. f4 {[%clk 0:02:10]}  f6 {[%clk 0:02:11]} 23. Ng6 {[%clk 0:02:00]}  Kf7 {[%clk 0:02:03]} 24. f5 {[%clk 0:01:57]}  Be4 {[%clk 0:01:57]} 25. Nh4 {[%clk 0:01:40]}  c4 {[%clk 0:01:51]} 26. Kf2 {[%clk 0:01:40]}  Bc2 {[%clk 0:01:49]} 27. Rxd8 {[%clk 0:01:27]}  Rxd8 {[%clk 0:01:49]} 28. Re1 {[%clk 0:01:27]}  Rb8 {[%clk 0:01:31]} 29. b4 {[%clk 0:01:18]}  cxb3 {[%clk 0:01:28]} 30. axb3 {[%clk 0:01:18]}  Rxb3 {[%clk 0:01:20]} 31. Ra1 {[%clk 0:01:18]}  Rb7 {[%clk 0:01:16]} 32. g4 {[%clk 0:01:17]}  g6 {[%clk 0:01:07]} 33. fxg6+ {[%clk 0:01:16]}  Bxg6 {[%clk 0:01:06]} 34. Ra6 {[%clk 0:01:15]}  Be4 {[%clk 0:01:04]} 35. Ke3 {[%clk 0:01:13]}  Bc2 {[%clk 0:00:59]} 36. Nf3 {[%clk 0:01:08]}  Bd1 {[%clk 0:00:56]} 37. Nd4 {[%clk 0:01:07]}  Bxg4 {[%clk 0:00:54]} 38. Nc6 {[%clk 0:01:03]}  Rc7 {[%clk 0:00:42]} 39. Kf4 {[%clk 0:00:54]}  Bd7 {[%clk 0:00:39]} 40. Rxa7 {[%clk 0:00:49]}  Rxa7 {[%clk 0:00:34]} 41. Nxa7 {[%clk 0:00:49]}  Ke6 {[%clk 0:00:34]} 42. c4 {[%clk 0:00:48]}  Kd6 {[%clk 0:00:32]} 43. Ke4 {[%clk 0:00:40]}  Kc5 {[%clk 0:00:32]} 44. Kd3 {[%clk 0:00:30]}  h5 {[%clk 0:00:31]} 0-1


[Site "https://www.chess.com"]

[Event "Titled Tuesday Blitz August 22 Early 2023"]
[White "Semenova, Alina"]
[Black "Polaczek, Richard"]
[WhiteFideId "24113875"]
[BlackFideId "200026"]
[WhiteElo "2090"]
[BlackElo "2391"]
[Result "1/2-1/2"]
[Round "10"]
[TimeControl "180+1"]
[Date "2023.08.22"]
[WhiteClock "0:00:06"]
[BlackClock "0:00:21"]
[Board "135"]

1. e4 {[%clk 0:03:00]}  Nf6 {[%clk 0:02:59]} 2. e5 {[%clk 0:02:55]}  Nd5 {[%clk 0:02:59]} 3. d4 {[%clk 0:02:56]}  d6 {[%clk 0:02:59]} 4. c4 {[%clk 0:02:56]}  Nb6 {[%clk 0:02:59]} 5. exd6 {[%clk 0:02:57]}  cxd6 {[%clk 0:02:59]} 6. Nc3 {[%clk 0:02:47]}  g6 {[%clk 0:02:59]} 7. h3 {[%clk 0:02:38]}  Bg7 {[%clk 0:02:58]} 8. Nf3 {[%clk 0:02:38]}  O-O {[%clk 0:02:58]} 9. Be3 {[%clk 0:02:39]}  Nc6 {[%clk 0:02:58]} 10. Be2 {[%clk 0:02:39]}  Bf5 {[%clk 0:02:56]} 11. a3 {[%clk 0:02:37]}  d5 {[%clk 0:02:55]} 12. c5 {[%clk 0:02:26]}  Nc4 {[%clk 0:02:54]} 13. Bxc4 {[%clk 0:02:27]}  dxc4 {[%clk 0:02:53]} 14. O-O {[%clk 0:02:27]}  Bd3 {[%clk 0:02:50]} 15. d5 {[%clk 0:02:23]}  Ne5 {[%clk 0:02:27]} 16. Nxe5 {[%clk 0:02:18]}  Bxe5 {[%clk 0:02:25]} 17. Re1 {[%clk 0:02:17]}  Bxc3 {[%clk 0:02:20]} 18. bxc3 {[%clk 0:02:18]}  Qxd5 {[%clk 0:02:19]} 19. Bd4 {[%clk 0:02:18]}  Rfe8 {[%clk 0:02:15]} 20. Re5 {[%clk 0:02:13]}  Qd7 {[%clk 0:02:15]} 21. Qd2 {[%clk 0:02:03]}  f6 {[%clk 0:02:13]} 22. Ree1 {[%clk 0:02:01]}  e5 {[%clk 0:02:13]} 23. Be3 {[%clk 0:02:00]}  Rad8 {[%clk 0:02:07]} 24. f4 {[%clk 0:01:59]}  exf4 {[%clk 0:02:02]} 25. Bxf4 {[%clk 0:02:00]}  Rxe1+ {[%clk 0:02:00]} 26. Rxe1 {[%clk 0:02:01]}  Re8 {[%clk 0:02:00]} 27. Rxe8+ {[%clk 0:01:59]}  Qxe8 {[%clk 0:02:00]} 28. Bd6 {[%clk 0:01:59]}  Qe4 {[%clk 0:01:50]} 29. Qh6 {[%clk 0:01:51]}  Qe8 {[%clk 0:01:43]} 30. Qf4 {[%clk 0:01:51]}  Kf7 {[%clk 0:01:35]} 31. Qd4 {[%clk 0:01:46]}  Qe6 {[%clk 0:01:26]} 32. c6 {[%clk 0:01:39]}  bxc6 {[%clk 0:01:18]} 33. Qxa7+ {[%clk 0:01:39]}  Ke8 {[%clk 0:01:18]} 34. Qb8+ {[%clk 0:01:38]}  Kd7 {[%clk 0:01:18]} 35. Qc7+ {[%clk 0:01:38]}  Ke8 {[%clk 0:01:18]} 36. Qb8+ {[%clk 0:01:32]}  Kd7 {[%clk 0:01:16]} 37. Bg3 {[%clk 0:01:28]}  Qe3+ {[%clk 0:01:04]} 38. Kh2 {[%clk 0:01:27]}  Qe4 {[%clk 0:01:02]} 39. Qd6+ {[%clk 0:01:26]}  Ke8 {[%clk 0:01:01]} 40. Qxf6 {[%clk 0:01:26]}  h5 {[%clk 0:00:58]} 41. a4 {[%clk 0:01:16]}  c5 {[%clk 0:00:50]} 42. a5 {[%clk 0:01:12]}  Qd5 {[%clk 0:00:49]} 43. a6 {[%clk 0:01:08]}  Be4 {[%clk 0:00:47]} 44. a7 {[%clk 0:01:03]}  Bxg2 {[%clk 0:00:47]} 45. Qxg6+ {[%clk 0:00:59]}  Kd7 {[%clk 0:00:44]} 46. Qg7+ {[%clk 0:00:57]}  Ke8 {[%clk 0:00:39]} 47. Qh8+ {[%clk 0:00:20]}  Kd7 {[%clk 0:00:33]} 48. Qg7+ {[%clk 0:00:19]}  Ke8 {[%clk 0:00:32]} 49. Qg6+ {[%clk 0:00:20]}  Kd7 {[%clk 0:00:30]} 50. Qd6+ {[%clk 0:00:20]}  Qxd6 {[%clk 0:00:28]} 51. Bxd6 {[%clk 0:00:21]}  Bc6 {[%clk 0:00:26]} 52. Bxc5 {[%clk 0:00:21]}  Ke6 {[%clk 0:00:25]} 53. Kg3 {[%clk 0:00:20]}  Kf5 {[%clk 0:00:25]} 54. Bd4 {[%clk 0:00:19]}  Bd5 {[%clk 0:00:23]} 55. Kh4 {[%clk 0:00:19]}  Kg6 {[%clk 0:00:23]} 56. Kg3 {[%clk 0:00:18]}  Kf5 {[%clk 0:00:23]} 57. Bb6 {[%clk 0:00:17]}  Bc6 {[%clk 0:00:22]} 58. h4 {[%clk 0:00:14]}  Ke4 {[%clk 0:00:21]} 59. Bc5 {[%clk 0:00:12]}  Bb7 {[%clk 0:00:21]} 60. Bd4 {[%clk 0:00:11]}  Bc6 {[%clk 0:00:21]} 61. Bg7 {[%clk 0:00:10]}  Bb7 {[%clk 0:00:21]} 62. Bd4 {[%clk 0:00:09]}  Bc6 {[%clk 0:00:21]} 63. Bb6 {[%clk 0:00:07]}  Bb7 {[%clk 0:00:21]} 64. Bd4 {[%clk 0:00:06]} 1/2-1/2


[Site "https://www.chess.com"]

[Event "Titled Tuesday Blitz August 22 Early 2023"]
[White "Skiadopoulos, Nikolaos"]
[Black "Efremov, Vladislav"]
[WhiteFideId "4200772"]
[BlackFideId "44159935"]
[WhiteElo "1849"]
[BlackElo "2377"]
[Result "0-1"]
[Round "10"]
[TimeControl "180+1"]
[Date "2023.08.22"]
[WhiteClock "0:00:12"]
[BlackClock "0:01:23"]
[Board "136"]

1. e4 {[%clk 0:02:59]}  c5 {[%clk 0:02:59]} 2. Nf3 {[%clk 0:02:57]}  e6 {[%clk 0:02:59]} 3. b3 {[%clk 0:02:53]}  Nc6 {[%clk 0:02:58]} 4. Bb5 {[%clk 0:02:52]}  Nf6 {[%clk 0:02:57]} 5. e5 {[%clk 0:02:48]}  Nd5 {[%clk 0:02:57]} 6. Bxc6 {[%clk 0:02:48]}  bxc6 {[%clk 0:02:52]} 7. Bb2 {[%clk 0:02:44]}  Be7 {[%clk 0:02:51]} 8. Nc3 {[%clk 0:02:43]}  O-O {[%clk 0:02:51]} 9. Ne4 {[%clk 0:02:42]}  Rb8 {[%clk 0:02:45]} 10. O-O {[%clk 0:02:26]}  c4 {[%clk 0:02:42]} 11. Bd4 {[%clk 0:02:26]}  cxb3 {[%clk 0:02:30]} 12. axb3 {[%clk 0:02:25]}  a6 {[%clk 0:02:29]} 13. Bc5 {[%clk 0:02:19]}  Bxc5 {[%clk 0:02:26]} 14. Nxc5 {[%clk 0:02:19]}  f6 {[%clk 0:02:20]} 15. Nxa6 {[%clk 0:02:12]}  Bxa6 {[%clk 0:02:18]} 16. Rxa6 {[%clk 0:02:11]}  fxe5 {[%clk 0:02:18]} 17. Nxe5 {[%clk 0:02:09]}  Rf5 {[%clk 0:02:16]} 18. Qe2 {[%clk 0:01:56]}  Qc7 {[%clk 0:02:10]} 19. d4 {[%clk 0:01:51]}  Nf4 {[%clk 0:02:06]} 20. Qe4 {[%clk 0:01:47]}  c5 {[%clk 0:02:00]} 21. c3 {[%clk 0:01:33]}  h6 {[%clk 0:01:54]} 22. g3 {[%clk 0:01:31]}  Nh3+ {[%clk 0:01:52]} 23. Kg2 {[%clk 0:01:30]}  Ng5 {[%clk 0:01:52]} 24. Qd3 {[%clk 0:01:15]}  Rxb3 {[%clk 0:01:34]} 25. f4 {[%clk 0:01:08]}  Qb7+ {[%clk 0:01:33]} 26. Nf3 {[%clk 0:00:53]}  Rb2+ {[%clk 0:01:29]} 27. Rf2 {[%clk 0:00:51]}  Rxf2+ {[%clk 0:01:27]} 28. Kxf2 {[%clk 0:00:50]}  Nxf3 {[%clk 0:01:27]} 29. Ra5 {[%clk 0:00:28]}  Nxh2 {[%clk 0:01:24]} 30. Rxc5 {[%clk 0:00:23]}  Ng4+ {[%clk 0:01:23]} 31. Kg1 {[%clk 0:00:20]}  Rxc5 {[%clk 0:01:23]} 32. dxc5 {[%clk 0:00:12]}  Qd5 {[%clk 0:01:23]} 0-1


[Site "https://www.chess.com"]

[Event "Titled Tuesday Blitz August 22 Early 2023"]
[White "Czerw, Dawid"]
[Black "micke12a"]
[WhiteFideId "1145746"]
[WhiteElo "2465"]
[BlackElo "2311"]
[Result "0-1"]
[Round "10"]
[TimeControl "180+1"]
[Date "2023.08.22"]
[WhiteClock "0:01:48"]
[BlackClock "0:01:47"]
[Board "139"]

1. e4 {[%clk 0:03:00]}  c5 {[%clk 0:02:57]} 2. Nf3 {[%clk 0:03:01]}  d6 {[%clk 0:02:57]} 3. d4 {[%clk 0:03:01]}  cxd4 {[%clk 0:02:57]} 4. Nxd4 {[%clk 0:03:02]}  Nf6 {[%clk 0:02:58]} 5. Nc3 {[%clk 0:03:03]}  g6 {[%clk 0:02:59]} 6. h4 {[%clk 0:03:01]}  h5 {[%clk 0:02:55]} 7. Bg5 {[%clk 0:03:01]}  Bg7 {[%clk 0:02:55]} 8. Qd2 {[%clk 0:03:02]}  Nc6 {[%clk 0:02:55]} 9. Nb3 {[%clk 0:03:01]}  Be6 {[%clk 0:02:53]} 10. O-O-O {[%clk 0:03:01]}  Rc8 {[%clk 0:02:54]} 11. f4 {[%clk 0:03:01]}  O-O {[%clk 0:02:42]} 12. Bd3 {[%clk 0:03:00]}  Nb4 {[%clk 0:02:36]} 13. f5 {[%clk 0:02:58]}  Bxb3 {[%clk 0:02:34]} 14. axb3 {[%clk 0:02:54]}  Qa5 {[%clk 0:02:30]} 15. Qe1 {[%clk 0:02:26]}  Qa1+ {[%clk 0:02:17]} 16. Kd2 {[%clk 0:02:25]}  Qxb2 {[%clk 0:02:17]} 17. Na4 {[%clk 0:02:22]}  Rxc2+ {[%clk 0:02:05]} 18. Ke3 {[%clk 0:02:14]}  Ng4+ {[%clk 0:01:58]} 19. Kf3 {[%clk 0:02:14]}  Qxb3 {[%clk 0:01:53]} 20. Qf1 {[%clk 0:01:48]}  Rf2+ {[%clk 0:01:47]} 0-1


[Site "https://www.chess.com"]

[Event "Titled Tuesday Blitz August 22 Early 2023"]
[White "Mrudul Dehankar"]
[Black "Hoffmann, Asa"]
[WhiteFideId "25096990"]
[BlackFideId "2001470"]
[WhiteElo "2396"]
[BlackElo "2276"]
[Result "0-1"]
[Round "10"]
[TimeControl "180+1"]
[Date "2023.08.22"]
[WhiteClock "0:00:00"]
[BlackClock "0:00:35"]
[Board "141"]

1. e4 {[%clk 0:02:55]}  d6 {[%clk 0:02:47]} 2. d4 {[%clk 0:02:54]}  Nf6 {[%clk 0:02:44]} 3. Nc3 {[%clk 0:02:51]}  c6 {[%clk 0:02:44]} 4. Nf3 {[%clk 0:02:50]}  Bg4 {[%clk 0:02:43]} 5. h3 {[%clk 0:02:48]}  Bh5 {[%clk 0:02:43]} 6. Bd3 {[%clk 0:02:46]}  e6 {[%clk 0:02:43]} 7. Be3 {[%clk 0:02:43]}  d5 {[%clk 0:02:41]} 8. e5 {[%clk 0:02:41]}  Nfd7 {[%clk 0:02:41]} 9. g4 {[%clk 0:02:38]}  Bg6 {[%clk 0:02:41]} 10. h4 {[%clk 0:02:37]}  c5 {[%clk 0:02:40]} 11. h5 {[%clk 0:02:33]}  Bxd3 {[%clk 0:02:39]} 12. Qxd3 {[%clk 0:02:33]}  h6 {[%clk 0:02:38]} 13. Ne2 {[%clk 0:02:22]}  cxd4 {[%clk 0:02:36]} 14. Nexd4 {[%clk 0:02:19]}  Nc6 {[%clk 0:02:36]} 15. Qb5 {[%clk 0:02:05]}  Qc7 {[%clk 0:02:23]} 16. O-O-O {[%clk 0:01:48]}  Rc8 {[%clk 0:02:19]} 17. Kb1 {[%clk 0:01:37]}  Be7 {[%clk 0:02:18]} 18. c3 {[%clk 0:01:20]}  a6 {[%clk 0:02:17]} 19. Qa4 {[%clk 0:01:15]}  Nb6 {[%clk 0:02:15]} 20. Qb3 {[%clk 0:01:03]}  Nc4 {[%clk 0:02:10]} 21. Rhe1 {[%clk 0:00:58]}  N6a5 {[%clk 0:02:05]} 22. Qc2 {[%clk 0:00:57]}  b5 {[%clk 0:02:05]} 23. Nb3 {[%clk 0:00:55]}  Nb7 {[%clk 0:01:57]} 24. Bd4 {[%clk 0:00:52]}  a5 {[%clk 0:01:56]} 25. Nbd2 {[%clk 0:00:50]}  a4 {[%clk 0:01:54]} 26. Nxc4 {[%clk 0:00:49]}  Qxc4 {[%clk 0:01:52]} 27. Qe2 {[%clk 0:00:46]}  b4 {[%clk 0:01:45]} 28. Qxc4 {[%clk 0:00:20]}  Rxc4 {[%clk 0:01:44]} 29. Re2 {[%clk 0:00:20]}  Kd7 {[%clk 0:01:42]} 30. Nd2 {[%clk 0:00:16]}  Rc6 {[%clk 0:01:41]} 31. Nf1 {[%clk 0:00:16]}  Rhc8 {[%clk 0:01:35]} 32. Ne3 {[%clk 0:00:15]}  Na5 {[%clk 0:01:29]} 33. Nc2 {[%clk 0:00:14]}  bxc3 {[%clk 0:01:23]} 34. Bxc3 {[%clk 0:00:14]}  Nc4 {[%clk 0:01:22]} 35. Nd4 {[%clk 0:00:15]}  Rb6 {[%clk 0:01:21]} 36. f4 {[%clk 0:00:13]}  Rcb8 {[%clk 0:01:20]} 37. Ka1 {[%clk 0:00:13]}  Bc5 {[%clk 0:01:17]} 38. f5 {[%clk 0:00:09]}  a3 {[%clk 0:01:13]} 39. b3 {[%clk 0:00:06]}  Nb2 {[%clk 0:01:12]} 40. Bxb2 {[%clk 0:00:06]}  axb2+ {[%clk 0:01:11]} 41. Kxb2 {[%clk 0:00:06]}  Rb4 {[%clk 0:01:10]} 42. Red2 {[%clk 0:00:05]}  Ra8 {[%clk 0:01:06]} 43. a3 {[%clk 0:00:04]}  Rb7 {[%clk 0:00:58]} 44. b4 {[%clk 0:00:05]}  Bxd4+ {[%clk 0:00:53]} 45. Rxd4 {[%clk 0:00:05]}  Rc8 {[%clk 0:00:51]} 46. Kb3 {[%clk 0:00:04]}  Rbc7 {[%clk 0:00:51]} 47. R1d3 {[%clk 0:00:03]}  Rc1 {[%clk 0:00:50]} 48. b5 {[%clk 0:00:04]}  Rb1+ {[%clk 0:00:46]} 49. Ka2 {[%clk 0:00:02]}  Rxb5 {[%clk 0:00:45]} 50. a4 {[%clk 0:00:03]}  Rb7 {[%clk 0:00:43]} 51. Ka3 {[%clk 0:00:03]}  Rc1 {[%clk 0:00:42]} 52. Rd2 {[%clk 0:00:02]}  Kc6 {[%clk 0:00:39]} 53. R4d3 {[%clk 0:00:01]}  Rc4 {[%clk 0:00:37]} 54. Ra2 {[%clk 0:00:01]}  Ra7 {[%clk 0:00:37]} 55. a5 {[%clk 0:00:01]}  Rxa5+ {[%clk 0:00:36]} 56. Kb3 {[%clk 0:00:01]}  Rxa2 {[%clk 0:00:35]} 57. Kxa2 {[%clk 0:00:00]}  d4 {[%clk 0:00:35]} 0-1


[Site "https://www.chess.com"]

[Event "Titled Tuesday Blitz August 22 Early 2023"]
[White "EvgenyBurmakin"]
[Black "Cheer_Down"]
[WhiteElo "2271"]
[BlackElo "2394"]
[Result "0-1"]
[Round "10"]
[TimeControl "180+1"]
[Date "2023.08.22"]
[WhiteClock "0:00:02"]
[BlackClock "0:00:14"]
[Board "142"]

1. e4 {[%clk 0:02:49]}  e6 {[%clk 0:02:57]} 2. d4 {[%clk 0:02:48]}  d5 {[%clk 0:02:58]} 3. Nd2 {[%clk 0:02:48]}  c5 {[%clk 0:02:57]} 4. Ngf3 {[%clk 0:02:47]}  Nc6 {[%clk 0:02:56]} 5. exd5 {[%clk 0:02:31]}  exd5 {[%clk 0:02:56]} 6. Bb5 {[%clk 0:02:31]}  Qe7+ {[%clk 0:02:54]} 7. Qe2 {[%clk 0:02:27]}  Qxe2+ {[%clk 0:02:53]} 8. Kxe2 {[%clk 0:02:26]}  cxd4 {[%clk 0:02:44]} 9. Re1 {[%clk 0:02:23]}  Bd7 {[%clk 0:02:37]} 10. Kf1+ {[%clk 0:02:21]}  Be7 {[%clk 0:02:37]} 11. Nb3 {[%clk 0:02:18]}  O-O-O {[%clk 0:02:10]} 12. Nfxd4 {[%clk 0:01:54]}  Bf6 {[%clk 0:02:05]} 13. Bxc6 {[%clk 0:01:24]}  bxc6 {[%clk 0:01:59]} 14. c3 {[%clk 0:01:24]}  Ne7 {[%clk 0:01:55]} 15. Bf4 {[%clk 0:01:22]}  Ng6 {[%clk 0:01:52]} 16. Bg3 {[%clk 0:01:20]}  Rhe8 {[%clk 0:01:49]} 17. Nc5 {[%clk 0:01:15]}  Be5 {[%clk 0:01:40]} 18. a4 {[%clk 0:00:52]}  Bxg3 {[%clk 0:01:39]} 19. hxg3 {[%clk 0:00:53]}  Kc7 {[%clk 0:01:36]} 20. Rxe8 {[%clk 0:00:42]}  Rxe8 {[%clk 0:01:35]} 21. Re1 {[%clk 0:00:42]}  Rxe1+ {[%clk 0:01:31]} 22. Kxe1 {[%clk 0:00:43]}  Bc8 {[%clk 0:01:22]} 23. Kd2 {[%clk 0:00:37]}  Kd6 {[%clk 0:01:20]} 24. b4 {[%clk 0:00:34]}  Ne5 {[%clk 0:01:17]} 25. f3 {[%clk 0:00:26]}  a5 {[%clk 0:01:07]} 26. Kc2 {[%clk 0:00:14]}  g5 {[%clk 0:01:03]} 27. Kb3 {[%clk 0:00:13]}  h5 {[%clk 0:01:01]} 28. Kc2 {[%clk 0:00:11]}  h4 {[%clk 0:00:58]} 29. gxh4 {[%clk 0:00:11]}  gxh4 {[%clk 0:00:59]} 30. Kd2 {[%clk 0:00:09]}  Nc4+ {[%clk 0:00:56]} 31. Ke2 {[%clk 0:00:09]}  Ne5 {[%clk 0:00:51]} 32. Ke3 {[%clk 0:00:08]}  f6 {[%clk 0:00:42]} 33. Kf4 {[%clk 0:00:08]}  Nc4 {[%clk 0:00:34]} 34. Nd3 {[%clk 0:00:01]}  Ba6 {[%clk 0:00:25]} 35. Nf2 {[%clk 0:00:01]}  axb4 {[%clk 0:00:21]} 36. cxb4 {[%clk 0:00:02]}  c5 {[%clk 0:00:22]} 37. bxc5+ {[%clk 0:00:01]}  Kxc5 {[%clk 0:00:23]} 38. Ne6+ {[%clk 0:00:02]}  Kb4 {[%clk 0:00:22]} 39. Ng7 {[%clk 0:00:02]}  Kc3 {[%clk 0:00:20]} 40. Kf5 {[%clk 0:00:02]}  Ne3+ {[%clk 0:00:17]} 41. Kxf6 {[%clk 0:00:03]}  Nxg2 {[%clk 0:00:18]} 42. Nf5 {[%clk 0:00:02]}  d4 {[%clk 0:00:17]} 43. Ke5 {[%clk 0:00:02]}  d3 {[%clk 0:00:16]} 44. Nxd3 {[%clk 0:00:02]}  Bxd3 {[%clk 0:00:16]} 45. Nxh4 {[%clk 0:00:01]}  Nxh4 {[%clk 0:00:16]} 46. f4 {[%clk 0:00:02]}  Kb4 {[%clk 0:00:15]} 47. a5 {[%clk 0:00:03]}  Kxa5 {[%clk 0:00:15]} 48. Kd4 {[%clk 0:00:02]}  Bf5 {[%clk 0:00:15]} 49. Ke5 {[%clk 0:00:02]}  Kb5 {[%clk 0:00:14]} 50. Kf6 {[%clk 0:00:03]}  Bc8 {[%clk 0:00:13]} 51. Kg5 {[%clk 0:00:03]}  Nf5 {[%clk 0:00:13]} 52. Kf6 {[%clk 0:00:04]}  Kc5 {[%clk 0:00:14]} 53. Ke5 {[%clk 0:00:05]}  Kc6 {[%clk 0:00:14]} 54. Kf6 {[%clk 0:00:05]}  Kd6 {[%clk 0:00:14]} 55. Kg5 {[%clk 0:00:05]}  Ke6 {[%clk 0:00:14]} 56. Kg4 {[%clk 0:00:03]}  Bb7 {[%clk 0:00:15]} 57. Kg5 {[%clk 0:00:03]}  Be4 {[%clk 0:00:14]} 58. Kg4 {[%clk 0:00:03]}  Kf6 {[%clk 0:00:15]} 59. Kh5 {[%clk 0:00:02]}  Bf3# {[%clk 0:00:14]} 0-1


[Site "https://www.chess.com"]

[Event "Titled Tuesday Blitz August 22 Early 2023"]
[White "Sarkar, Justin"]
[Black "Bogaudinov, Rushan"]
[WhiteFideId "2010011"]
[BlackFideId "4129288"]
[WhiteElo "2245"]
[BlackElo "2383"]
[Result "0-1"]
[Round "10"]
[TimeControl "180+1"]
[Date "2023.08.22"]
[WhiteClock "0:00:00"]
[BlackClock "0:01:46"]
[Board "144"]

1. e4 {[%clk 0:02:27]}  a6 {[%clk 0:02:59]} 2. c4 {[%clk 0:02:13]}  e6 {[%clk 0:02:58]} 3. d4 {[%clk 0:02:10]}  d5 {[%clk 0:02:58]} 4. cxd5 {[%clk 0:01:57]}  exd5 {[%clk 0:02:59]} 5. e5 {[%clk 0:01:56]}  c5 {[%clk 0:02:58]} 6. Nc3 {[%clk 0:01:50]}  Nc6 {[%clk 0:02:53]} 7. dxc5 {[%clk 0:01:37]}  Be6 {[%clk 0:02:53]} 8. Na4 {[%clk 0:00:33]}  Nxe5 {[%clk 0:02:48]} 9. Nb6 {[%clk 0:00:31]}  Bxc5 {[%clk 0:02:47]} 10. Nxa8 {[%clk 0:00:30]}  Qxa8 {[%clk 0:02:48]} 11. Nf3 {[%clk 0:00:13]}  Ng4 {[%clk 0:02:46]} 12. Nd4 {[%clk 0:00:11]}  Qa7 {[%clk 0:02:39]} 13. Nxe6 {[%clk 0:00:06]}  Bxf2+ {[%clk 0:02:35]} 14. Kd2 {[%clk 0:00:06]}  Qe3+ {[%clk 0:02:26]} 15. Kc2 {[%clk 0:00:03]}  Qxe6 {[%clk 0:02:26]} 16. Be2 {[%clk 0:00:03]}  Ne5 {[%clk 0:02:12]} 17. Rf1 {[%clk 0:00:02]}  Bh4 {[%clk 0:02:02]} 18. Bf4 {[%clk 0:00:02]}  Nc6 {[%clk 0:01:48]} 19. Bg4 {[%clk 0:00:01]}  Qe4+ {[%clk 0:01:46]} 20. Qd3 {[%clk 0:00:00]}  Nb4+ {[%clk 0:01:46]} 0-1


[Site "https://www.chess.com"]

[Event "Titled Tuesday Blitz August 22 Early 2023"]
[White "AndresDelgado77"]
[Black "Prudnykova, Olga"]
[BlackFideId "14121093"]
[WhiteElo "2244"]
[BlackElo "2377"]
[Result "0-1"]
[Round "10"]
[TimeControl "180+1"]
[Date "2023.08.22"]
[WhiteClock "0:00:00"]
[BlackClock "0:01:02"]
[Board "145"]

1. e4 {[%clk 0:03:00]}  c5 {[%clk 0:02:59]} 2. Nf3 {[%clk 0:02:59]}  Nf6 {[%clk 0:02:59]} 3. Nc3 {[%clk 0:02:56]}  e6 {[%clk 0:02:59]} 4. d4 {[%clk 0:02:32]}  cxd4 {[%clk 0:03:00]} 5. Nxd4 {[%clk 0:02:32]}  Nc6 {[%clk 0:03:00]} 6. Ndb5 {[%clk 0:02:32]}  Bc5 {[%clk 0:02:58]} 7. Bf4 {[%clk 0:02:23]}  O-O {[%clk 0:02:50]} 8. Bc7 {[%clk 0:02:05]}  Qe7 {[%clk 0:02:49]} 9. e5 {[%clk 0:01:53]}  Ne8 {[%clk 0:02:35]} 10. Ne4 {[%clk 0:01:51]}  Nxc7 {[%clk 0:02:18]} 11. Nxc7 {[%clk 0:01:48]}  Rb8 {[%clk 0:02:18]} 12. Nb5 {[%clk 0:01:41]}  Nxe5 {[%clk 0:02:12]} 13. Qh5 {[%clk 0:01:33]}  f5 {[%clk 0:01:55]} 14. Ng5 {[%clk 0:01:29]}  h6 {[%clk 0:01:54]} 15. h4 {[%clk 0:01:28]}  Ng4 {[%clk 0:01:27]} 16. Bc4 {[%clk 0:01:01]}  Bxf2+ {[%clk 0:01:24]} 17. Ke2 {[%clk 0:00:57]}  Qc5 {[%clk 0:01:23]} 18. b3 {[%clk 0:00:44]}  Qe5+ {[%clk 0:01:05]} 19. Kf1 {[%clk 0:00:36]}  Qxa1+ {[%clk 0:01:04]} 20. Ke2 {[%clk 0:00:00]}  Qe5+ {[%clk 0:01:02]} 0-1


[Site "https://www.chess.com"]

[Event "Titled Tuesday Blitz August 22 Early 2023"]
[White "Gheorghiu, Calin"]
[Black "hsd2016"]
[WhiteFideId "1200305"]
[WhiteElo "2374"]
[BlackElo "2241"]
[Result "0-1"]
[Round "10"]
[TimeControl "180+1"]
[Date "2023.08.22"]
[WhiteClock "0:01:21"]
[BlackClock "0:02:16"]
[Board "146"]

1. e4 {[%clk 0:03:00]}  c5 {[%clk 0:02:59]} 2. Nf3 {[%clk 0:03:00]}  b6 {[%clk 0:02:58]} 3. d4 {[%clk 0:02:59]}  cxd4 {[%clk 0:02:57]} 4. Nxd4 {[%clk 0:03:00]}  Bb7 {[%clk 0:02:58]} 5. Nc3 {[%clk 0:02:59]}  Nc6 {[%clk 0:02:57]} 6. Bc4 {[%clk 0:02:57]}  Nf6 {[%clk 0:02:55]} 7. Bb3 {[%clk 0:02:56]}  e6 {[%clk 0:02:52]} 8. Bg5 {[%clk 0:02:51]}  Bc5 {[%clk 0:02:51]} 9. Nxc6 {[%clk 0:02:38]}  Bxc6 {[%clk 0:02:48]} 10. e5 {[%clk 0:02:37]}  h6 {[%clk 0:02:42]} 11. exf6 {[%clk 0:02:35]}  hxg5 {[%clk 0:02:42]} 12. fxg7 {[%clk 0:02:35]}  Rg8 {[%clk 0:02:42]} 13. O-O {[%clk 0:02:33]}  Rxg7 {[%clk 0:02:41]} 14. Re1 {[%clk 0:02:34]}  Qf6 {[%clk 0:02:39]} 15. Qe2 {[%clk 0:02:22]}  O-O-O {[%clk 0:02:35]} 16. Ba4 {[%clk 0:02:03]}  Bb7 {[%clk 0:02:30]} 17. Rad1 {[%clk 0:02:00]}  Rh7 {[%clk 0:02:18]} 18. Ne4 {[%clk 0:01:29]}  Bxe4 {[%clk 0:02:15]} 19. Qxe4 {[%clk 0:01:29]}  Qxf2+ {[%clk 0:02:15]} 20. Kh1 {[%clk 0:01:28]}  Rxh2+ {[%clk 0:02:15]} 21. Kxh2 {[%clk 0:01:21]}  Rh8+ {[%clk 0:02:16]} 0-1


[Site "https://www.chess.com"]